[Event "Titled Tuesday Blitz May 4 2021"]
[White "Gritsenko, Nikolai"]
[Black "Stromboli, Ettore"]
[WhiteFideId "14112493"]
[BlackFideId "813761"]
[WhiteElo "2389"]
[BlackElo "2414"]
[Result "1/2-1/2"]
[Round "02"]
[TimeControl "180+1"]
[Date "2021.05.04"]
[WhiteClock "0:00:16"]
[BlackClock "0:00:15"]

1. d4 {[%clk 0:03:00]}  Nf6 {[%clk 0:02:55]} 2. Bg5 {[%clk 0:03:00]}  Ne4 {[%clk 0:02:55]} 3. h4 {[%clk 0:02:59]}  Nxg5 {[%clk 0:02:51]} 4. hxg5 {[%clk 0:02:59]}  e5 {[%clk 0:02:52]} 5. dxe5 {[%clk 0:02:59]}  Qxg5 {[%clk 0:02:51]} 6. Nf3 {[%clk 0:02:58]}  Qd8 {[%clk 0:02:50]} 7. e3 {[%clk 0:02:49]}  d6 {[%clk 0:02:41]} 8. Nc3 {[%clk 0:02:46]}  Nc6 {[%clk 0:02:35]} 9. Bb5 {[%clk 0:02:45]}  Bd7 {[%clk 0:02:35]} 10. exd6 {[%clk 0:02:43]}  Bxd6 {[%clk 0:02:33]} 11. Qd3 {[%clk 0:02:42]}  h6 {[%clk 0:02:25]} 12. Ne4 {[%clk 0:02:28]}  Ne5 {[%clk 0:01:31]} 13. Nxd6+ {[%clk 0:02:24]}  cxd6 {[%clk 0:01:32]} 14. Bxd7+ {[%clk 0:02:15]}  Qxd7 {[%clk 0:01:32]} 15. Qd5 {[%clk 0:02:10]}  Nxf3+ {[%clk 0:01:27]} 16. gxf3 {[%clk 0:02:07]}  O-O-O {[%clk 0:00:50]} 17. O-O-O {[%clk 0:02:06]}  Kb8 {[%clk 0:00:47]} 18. Rh4 {[%clk 0:02:02]}  Qe6 {[%clk 0:00:42]} 19. Qa5 {[%clk 0:01:51]}  Rd7 {[%clk 0:00:36]} 20. Ra4 {[%clk 0:01:46]}  b6 {[%clk 0:00:36]} 21. Qb4 {[%clk 0:01:39]}  Rc8 {[%clk 0:00:34]} 22. Qe4 {[%clk 0:01:20]}  Rc5 {[%clk 0:00:28]} 23. Qxe6 {[%clk 0:01:16]}  fxe6 {[%clk 0:00:29]} 24. Re4 {[%clk 0:01:15]}  e5 {[%clk 0:00:28]} 25. c3 {[%clk 0:01:10]}  Kc7 {[%clk 0:00:20]} 26. f4 {[%clk 0:01:09]}  exf4 {[%clk 0:00:19]} 27. Rxf4 {[%clk 0:01:09]}  Re5 {[%clk 0:00:19]} 28. Kd2 {[%clk 0:01:04]}  Ree7 {[%clk 0:00:19]} 29. Ke2 {[%clk 0:01:03]}  Rf7 {[%clk 0:00:19]} 30. Rc4+ {[%clk 0:01:03]}  Kd8 {[%clk 0:00:19]} 31. a4 {[%clk 0:01:03]}  h5 {[%clk 0:00:18]} 32. a5 {[%clk 0:01:02]}  bxa5 {[%clk 0:00:18]} 33. Rd5 {[%clk 0:01:02]}  Rb7 {[%clk 0:00:17]} 34. Rd2 {[%clk 0:00:55]}  Kd7 {[%clk 0:00:16]} 35. Rcd4 {[%clk 0:00:50]}  Rf6 {[%clk 0:00:15]} 36. Rd5 {[%clk 0:00:50]}  a4 {[%clk 0:00:15]} 37. Rxh5 {[%clk 0:00:49]}  a3 {[%clk 0:00:13]} 38. bxa3 {[%clk 0:00:49]}  Rb3 {[%clk 0:00:13]} 39. Ra5 {[%clk 0:00:48]}  Rxc3 {[%clk 0:00:14]} 40. Rxa7+ {[%clk 0:00:48]}  Rc7 {[%clk 0:00:14]} 41. Rxc7+ {[%clk 0:00:43]}  Kxc7 {[%clk 0:00:15]} 42. Rd4 {[%clk 0:00:41]}  Kc6 {[%clk 0:00:15]} 43. a4 {[%clk 0:00:41]}  Kc5 {[%clk 0:00:15]} 44. f4 {[%clk 0:00:39]}  d5 {[%clk 0:00:16]} 45. a5 {[%clk 0:00:37]}  Ra6 {[%clk 0:00:13]} 46. Ra4 {[%clk 0:00:35]}  Kb5 {[%clk 0:00:13]} 47. Ra1 {[%clk 0:00:35]}  Rxa5 {[%clk 0:00:13]} 48. Rxa5+ {[%clk 0:00:34]}  Kxa5 {[%clk 0:00:14]} 49. Kd3 {[%clk 0:00:34]}  Kb5 {[%clk 0:00:14]} 50. Kd4 {[%clk 0:00:34]}  Kc6 {[%clk 0:00:15]} 51. Ke5 {[%clk 0:00:34]}  Kc5 {[%clk 0:00:16]} 52. f5 {[%clk 0:00:23]}  Kc4 {[%clk 0:00:14]} 53. Kd6 {[%clk 0:00:16]}  d4 {[%clk 0:00:13]} 54. exd4 {[%clk 0:00:16]}  Kxd4 {[%clk 0:00:14]} 55. Ke6 {[%clk 0:00:16]}  Ke4 {[%clk 0:00:15]} 56. f6 {[%clk 0:00:15]}  gxf6 {[%clk 0:00:15]} 57. Kxf6 {[%clk 0:00:16]} 1/2-1/2


[Site "https://www.chess.com"]

[Event "Titled Tuesday Blitz May 4 2021"]
[White "Grochal, Joey"]
[Black "Shimelkov, Vasiliy"]
[WhiteFideId "1019945"]
[BlackFideId "13701630"]
[WhiteElo "2265"]
[BlackElo "2073"]
[Result "0-1"]
[Round "02"]
[TimeControl "180+1"]
[Date "2021.05.04"]
[WhiteClock "0:00:26"]
[BlackClock "0:00:12"]

1. d4 {[%clk 0:03:00]}  d5 {[%clk 0:02:59]} 2. c4 {[%clk 0:03:01]}  e6 {[%clk 0:02:58]} 3. Nf3 {[%clk 0:03:01]}  Nf6 {[%clk 0:02:58]} 4. Nc3 {[%clk 0:03:01]}  Be7 {[%clk 0:02:57]} 5. Bf4 {[%clk 0:03:02]}  O-O {[%clk 0:02:57]} 6. e3 {[%clk 0:03:02]}  b6 {[%clk 0:02:57]} 7. cxd5 {[%clk 0:03:02]}  Nxd5 {[%clk 0:02:56]} 8. Nxd5 {[%clk 0:03:02]}  exd5 {[%clk 0:02:57]} 9. Rc1 {[%clk 0:03:02]}  c5 {[%clk 0:02:55]} 10. Bd3 {[%clk 0:03:01]}  Be6 {[%clk 0:02:53]} 11. O-O {[%clk 0:03:00]}  Nd7 {[%clk 0:02:51]} 12. Qe2 {[%clk 0:02:54]}  Nf6 {[%clk 0:02:50]} 13. Ne5 {[%clk 0:02:52]}  c4 {[%clk 0:02:43]} 14. Bb1 {[%clk 0:02:51]}  Rc8 {[%clk 0:02:42]} 15. h3 {[%clk 0:02:35]}  b5 {[%clk 0:02:39]} 16. Bh2 {[%clk 0:02:35]}  b4 {[%clk 0:02:32]} 17. f4 {[%clk 0:02:33]}  c3 {[%clk 0:02:12]} 18. bxc3 {[%clk 0:02:33]}  bxc3 {[%clk 0:02:13]} 19. Bg3 {[%clk 0:02:27]}  Ba3 {[%clk 0:02:07]} 20. Rcd1 {[%clk 0:02:17]}  Ne4 {[%clk 0:01:45]} 21. Be1 {[%clk 0:02:15]}  Qc7 {[%clk 0:01:38]} 22. Bc2 {[%clk 0:02:15]}  f6 {[%clk 0:01:31]} 23. Nd3 {[%clk 0:02:07]}  Rfe8 {[%clk 0:01:21]} 24. f5 {[%clk 0:02:04]}  Bf7 {[%clk 0:01:20]} 25. Rf4 {[%clk 0:01:46]}  Bd6 {[%clk 0:01:17]} 26. Rh4 {[%clk 0:01:44]}  Bg3 {[%clk 0:01:17]} 27. Bxg3 {[%clk 0:01:38]}  Nxg3 {[%clk 0:01:17]} 28. Qf3 {[%clk 0:01:35]}  Ne4 {[%clk 0:01:10]} 29. Qf4 {[%clk 0:01:23]}  Qxf4 {[%clk 0:01:06]} 30. Rxf4 {[%clk 0:01:21]}  Nd6 {[%clk 0:01:04]} 31. Kf2 {[%clk 0:01:13]}  Nc4 {[%clk 0:00:59]} 32. Rf3 {[%clk 0:01:06]}  h5 {[%clk 0:00:56]} 33. g3 {[%clk 0:01:05]}  h4 {[%clk 0:00:54]} 34. g4 {[%clk 0:01:05]}  Na3 {[%clk 0:00:50]} 35. Rc1 {[%clk 0:01:03]}  Re7 {[%clk 0:00:39]} 36. Bb3 {[%clk 0:01:01]}  a5 {[%clk 0:00:26]} 37. Nc5 {[%clk 0:01:01]}  a4 {[%clk 0:00:18]} 38. Nxa4 {[%clk 0:00:56]}  Be8 {[%clk 0:00:15]} 39. Rxc3 {[%clk 0:00:52]}  Rxc3 {[%clk 0:00:14]} 40. Nxc3 {[%clk 0:00:52]}  Bc6 {[%clk 0:00:14]} 41. Nxd5 {[%clk 0:00:52]}  Bxd5 {[%clk 0:00:12]} 42. Bxd5+ {[%clk 0:00:52]}  Kf8 {[%clk 0:00:13]} 43. e4 {[%clk 0:00:53]}  Nb5 {[%clk 0:00:12]} 44. Rd3 {[%clk 0:00:52]}  Rc7 {[%clk 0:00:12]} 45. a4 {[%clk 0:00:51]}  Rc2+ {[%clk 0:00:12]} 46. Ke3 {[%clk 0:00:51]}  Nc3 {[%clk 0:00:13]} 47. Be6 {[%clk 0:00:46]}  Ke7 {[%clk 0:00:12]} 48. d5 {[%clk 0:00:46]}  Kd6 {[%clk 0:00:12]} 49. Rd2 {[%clk 0:00:29]}  Rc1 {[%clk 0:00:12]} 50. a5 {[%clk 0:00:27]}  Nb5 {[%clk 0:00:12]} 51. Ra2 {[%clk 0:00:26]}  Rh1 {[%clk 0:00:11]} 52. a6 {[%clk 0:00:26]}  Rxh3+ {[%clk 0:00:11]} 53. Kf2 {[%clk 0:00:26]}  Rh2+ {[%clk 0:00:12]} 0-1


[Site "https://www.chess.com"]

[Event "Titled Tuesday Blitz May 4 2021"]
[White "Hernandez Jimenez, Alexander Andres"]
[Black "Yurtseven, Melih"]
[WhiteFideId "3900452"]
[BlackFideId "6312160"]
[WhiteElo "2151"]
[BlackElo "2160"]
[Result "0-1"]
[Round "02"]
[TimeControl "180+1"]
[Date "2021.05.04"]
[WhiteClock "0:00:56"]
[BlackClock "0:01:47"]

1. e4 {[%clk 0:03:00]}  e6 {[%clk 0:02:56]} 2. d4 {[%clk 0:02:59]}  d5 {[%clk 0:02:56]} 3. Nd2 {[%clk 0:03:00]}  Nc6 {[%clk 0:02:55]} 4. Ngf3 {[%clk 0:02:59]}  Nf6 {[%clk 0:02:56]} 5. e5 {[%clk 0:02:59]}  Nd7 {[%clk 0:02:56]} 6. Be2 {[%clk 0:02:58]}  Be7 {[%clk 0:02:56]} 7. O-O {[%clk 0:02:57]}  a5 {[%clk 0:02:54]} 8. c4 {[%clk 0:02:50]}  dxc4 {[%clk 0:02:52]} 9. Nxc4 {[%clk 0:02:49]}  Nb4 {[%clk 0:02:48]} 10. b3 {[%clk 0:02:33]}  b6 {[%clk 0:02:48]} 11. Ba3 {[%clk 0:02:24]}  Bb7 {[%clk 0:02:36]} 12. Nfd2 {[%clk 0:02:23]}  Nd5 {[%clk 0:02:34]} 13. Bxe7 {[%clk 0:02:21]}  Qxe7 {[%clk 0:02:34]} 14. Bf3 {[%clk 0:02:13]}  O-O {[%clk 0:02:24]} 15. Ne4 {[%clk 0:02:12]}  a4 {[%clk 0:02:14]} 16. Ne3 {[%clk 0:02:08]}  axb3 {[%clk 0:02:05]} 17. axb3 {[%clk 0:02:03]}  Qb4 {[%clk 0:02:00]} 18. Rxa8 {[%clk 0:01:47]}  Rxa8 {[%clk 0:01:58]} 19. Qc2 {[%clk 0:01:24]}  Qxd4 {[%clk 0:01:48]} 20. Nxd5 {[%clk 0:01:10]}  Bxd5 {[%clk 0:01:49]} 21. Qxc7 {[%clk 0:01:05]}  Nxe5 {[%clk 0:01:49]} 22. Rd1 {[%clk 0:00:56]}  Nxf3+ {[%clk 0:01:47]} 0-1


[Site "https://www.chess.com"]

[Event "Titled Tuesday Blitz May 4 2021"]
[White "Hess, Robert"]
[Black "Rorrer, Grayson"]
[WhiteFideId "2022036"]
[BlackFideId "30944996"]
[WhiteElo "2557"]
[BlackElo "2428"]
[Result "1-0"]
[Round "02"]
[TimeControl "180+1"]
[Date "2021.05.04"]
[WhiteClock "0:00:09"]
[BlackClock "0:00:06"]

1. b3 {[%clk 0:03:00]}  e5 {[%clk 0:02:59]} 2. Bb2 {[%clk 0:03:01]}  Nc6 {[%clk 0:03:00]} 3. h3 {[%clk 0:03:02]}  d5 {[%clk 0:02:57]} 4. e3 {[%clk 0:03:02]}  Nf6 {[%clk 0:02:56]} 5. Bb5 {[%clk 0:03:01]}  e4 {[%clk 0:02:52]} 6. d3 {[%clk 0:03:00]}  Bd6 {[%clk 0:02:49]} 7. Nd2 {[%clk 0:02:58]}  exd3 {[%clk 0:02:47]} 8. cxd3 {[%clk 0:02:57]}  Bd7 {[%clk 0:02:48]} 9. d4 {[%clk 0:02:55]}  O-O {[%clk 0:02:45]} 10. Ngf3 {[%clk 0:02:54]}  a6 {[%clk 0:02:43]} 11. Bd3 {[%clk 0:02:53]}  Re8 {[%clk 0:02:41]} 12. O-O {[%clk 0:02:52]}  Nb4 {[%clk 0:02:37]} 13. Be2 {[%clk 0:02:43]}  Bf5 {[%clk 0:02:31]} 14. a3 {[%clk 0:02:42]}  Nc6 {[%clk 0:02:24]} 15. b4 {[%clk 0:02:40]}  Ne4 {[%clk 0:02:15]} 16. Nxe4 {[%clk 0:02:30]}  Bxe4 {[%clk 0:02:16]} 17. Nd2 {[%clk 0:02:30]}  Bf5 {[%clk 0:02:12]} 18. Bg4 {[%clk 0:02:23]}  Qg5 {[%clk 0:02:06]} 19. Nf3 {[%clk 0:01:58]}  Bxg4 {[%clk 0:02:01]} 20. Nxg5 {[%clk 0:01:58]}  Bxd1 {[%clk 0:02:02]} 21. Rfxd1 {[%clk 0:01:58]}  h6 {[%clk 0:01:57]} 22. Nf3 {[%clk 0:01:57]}  a5 {[%clk 0:01:51]} 23. b5 {[%clk 0:01:54]}  Na7 {[%clk 0:01:52]} 24. a4 {[%clk 0:01:51]}  c6 {[%clk 0:01:52]} 25. bxc6 {[%clk 0:01:21]}  Nxc6 {[%clk 0:01:53]} 26. Ne1 {[%clk 0:01:17]}  Reb8 {[%clk 0:01:44]} 27. Bc3 {[%clk 0:01:15]}  b5 {[%clk 0:01:38]} 28. axb5 {[%clk 0:01:14]}  Rxb5 {[%clk 0:01:39]} 29. Nd3 {[%clk 0:01:15]}  Rab8 {[%clk 0:01:37]} 30. Kf1 {[%clk 0:01:02]}  Nb4 {[%clk 0:01:34]} 31. Ra4 {[%clk 0:00:32]}  Rc8 {[%clk 0:01:11]} 32. Bxb4 {[%clk 0:00:24]}  axb4 {[%clk 0:01:10]} 33. Ra6 {[%clk 0:00:16]}  Bf8 {[%clk 0:01:05]} 34. Rb1 {[%clk 0:00:13]}  b3 {[%clk 0:00:58]} 35. Rb2 {[%clk 0:00:12]}  f6 {[%clk 0:00:42]} 36. Ke2 {[%clk 0:00:12]}  Kf7 {[%clk 0:00:32]} 37. Kd2 {[%clk 0:00:11]}  Bb4+ {[%clk 0:00:25]} 38. Nxb4 {[%clk 0:00:10]}  Rxb4 {[%clk 0:00:25]} 39. Ra3 {[%clk 0:00:10]}  Rcb8 {[%clk 0:00:26]} 40. Kc3 {[%clk 0:00:10]}  Rc4+ {[%clk 0:00:25]} 41. Kd3 {[%clk 0:00:10]}  Rcb4 {[%clk 0:00:23]} 42. Ra7+ {[%clk 0:00:10]}  Kg6 {[%clk 0:00:20]} 43. Ra5 {[%clk 0:00:10]}  R4b5 {[%clk 0:00:12]} 44. Rxb5 {[%clk 0:00:10]}  Rxb5 {[%clk 0:00:13]} 45. Kc3 {[%clk 0:00:11]}  Kf5 {[%clk 0:00:10]} 46. Rxb3 {[%clk 0:00:11]}  Ra5 {[%clk 0:00:11]} 47. Rb2 {[%clk 0:00:09]}  Ra1 {[%clk 0:00:11]} 48. Kd3 {[%clk 0:00:09]}  Rd1+ {[%clk 0:00:10]} 49. Ke2 {[%clk 0:00:09]}  Rg1 {[%clk 0:00:10]} 50. Kf3 {[%clk 0:00:09]}  g5 {[%clk 0:00:09]} 51. Rb5 {[%clk 0:00:08]}  Ke6 {[%clk 0:00:08]} 52. Rb6+ {[%clk 0:00:09]}  Ke7 {[%clk 0:00:09]} 53. Rb7+ {[%clk 0:00:09]}  Ke6 {[%clk 0:00:09]} 54. Rh7 {[%clk 0:00:09]}  f5 {[%clk 0:00:05]} 55. Rxh6+ {[%clk 0:00:09]}  Ke7 {[%clk 0:00:06]} 56. Rg6 {[%clk 0:00:09]} 1-0


[Site "https://www.chess.com"]

[Event "Titled Tuesday Blitz May 4 2021"]
[White "Hoffmann, Asa"]
[Black "Rosenberg, Evan S"]
[WhiteFideId "2001470"]
[BlackFideId "2019299"]
[WhiteElo "2117"]
[BlackElo "2123"]
[Result "0-1"]
[Round "02"]
[TimeControl "180+1"]
[Date "2021.05.04"]
[WhiteClock "0:00:39"]
[BlackClock "0:00:07"]

1. d4 {[%clk 0:02:57]}  Nf6 {[%clk 0:02:58]} 2. Bg5 {[%clk 0:02:56]}  d5 {[%clk 0:02:57]} 3. Nd2 {[%clk 0:02:50]}  h6 {[%clk 0:02:52]} 4. Bh4 {[%clk 0:02:49]}  c6 {[%clk 0:02:49]} 5. e3 {[%clk 0:02:49]}  Qb6 {[%clk 0:02:44]} 6. Rb1 {[%clk 0:02:47]}  Bf5 {[%clk 0:02:38]} 7. Ngf3 {[%clk 0:02:44]}  Nbd7 {[%clk 0:02:39]} 8. Be2 {[%clk 0:02:42]}  e6 {[%clk 0:02:38]} 9. O-O {[%clk 0:02:41]}  Bd6 {[%clk 0:02:35]} 10. c4 {[%clk 0:02:40]}  Qd8 {[%clk 0:02:13]} 11. c5 {[%clk 0:02:33]}  Bc7 {[%clk 0:02:09]} 12. b4 {[%clk 0:02:32]}  Bxb1 {[%clk 0:02:09]} 13. Qxb1 {[%clk 0:02:32]}  g5 {[%clk 0:02:09]} 14. Bg3 {[%clk 0:02:31]}  Bxg3 {[%clk 0:02:10]} 15. hxg3 {[%clk 0:02:28]}  Qe7 {[%clk 0:02:03]} 16. b5 {[%clk 0:02:26]}  O-O {[%clk 0:02:02]} 17. a4 {[%clk 0:02:25]}  e5 {[%clk 0:02:02]} 18. Qb2 {[%clk 0:02:19]}  e4 {[%clk 0:02:02]} 19. Ne1 {[%clk 0:02:17]}  Rab8 {[%clk 0:01:53]} 20. Nc2 {[%clk 0:02:14]}  Rfc8 {[%clk 0:01:47]} 21. Nb4 {[%clk 0:02:12]}  Nf8 {[%clk 0:01:39]} 22. Nb3 {[%clk 0:02:07]}  Qc7 {[%clk 0:01:06]} 23. Rb1 {[%clk 0:01:57]}  Ne6 {[%clk 0:00:45]} 24. Qd2 {[%clk 0:01:47]}  Qd8 {[%clk 0:00:32]} 25. Rb2 {[%clk 0:01:43]}  Kg7 {[%clk 0:00:32]} 26. Qd1 {[%clk 0:01:42]}  Rc7 {[%clk 0:00:30]} 27. Qb1 {[%clk 0:01:39]}  cxb5 {[%clk 0:00:30]} 28. axb5 {[%clk 0:01:38]}  Rbc8 {[%clk 0:00:23]} 29. Ra2 {[%clk 0:01:37]}  a6 {[%clk 0:00:20]} 30. bxa6 {[%clk 0:01:35]}  bxa6 {[%clk 0:00:21]} 31. Nxa6 {[%clk 0:01:34]}  Ra7 {[%clk 0:00:21]} 32. Qa1 {[%clk 0:01:31]}  Rca8 {[%clk 0:00:21]} 33. c6 {[%clk 0:01:28]}  Nc7 {[%clk 0:00:21]} 34. Nbc5 {[%clk 0:01:27]}  Nxa6 {[%clk 0:00:21]} 35. Rxa6 {[%clk 0:01:23]}  Rxa6 {[%clk 0:00:21]} 36. Bxa6 {[%clk 0:01:20]}  Qb6 {[%clk 0:00:22]} 37. Qa4 {[%clk 0:01:17]}  Ne8 {[%clk 0:00:19]} 38. Qb5 {[%clk 0:01:01]}  Qxb5 {[%clk 0:00:16]} 39. Bxb5 {[%clk 0:01:01]}  Nc7 {[%clk 0:00:17]} 40. Be2 {[%clk 0:00:58]}  Ra1+ {[%clk 0:00:16]} 41. Kh2 {[%clk 0:00:57]}  Ra2 {[%clk 0:00:16]} 42. Bg4 {[%clk 0:00:56]}  Rxf2 {[%clk 0:00:17]} 43. Bd7 {[%clk 0:00:55]}  Re2 {[%clk 0:00:16]} 44. Na4 {[%clk 0:00:51]}  Rxe3 {[%clk 0:00:16]} 45. Nb6 {[%clk 0:00:51]}  Rc3 {[%clk 0:00:13]} 46. Nc8 {[%clk 0:00:50]}  e3 {[%clk 0:00:13]} 47. Bg4 {[%clk 0:00:50]}  f5 {[%clk 0:00:11]} 48. Be2 {[%clk 0:00:45]}  Rxc6 {[%clk 0:00:10]} 49. Ne7 {[%clk 0:00:44]}  Rc2 {[%clk 0:00:10]} 50. Nxf5+ {[%clk 0:00:44]}  Kf6 {[%clk 0:00:06]} 51. Bg4 {[%clk 0:00:43]}  e2 {[%clk 0:00:04]} 52. Bxe2 {[%clk 0:00:42]}  Rxe2 {[%clk 0:00:05]} 53. g4 {[%clk 0:00:42]}  h5 {[%clk 0:00:04]} 54. Kg3 {[%clk 0:00:41]}  hxg4 {[%clk 0:00:03]} 55. Kxg4 {[%clk 0:00:41]}  Rxg2+ {[%clk 0:00:03]} 56. Kf3 {[%clk 0:00:41]}  Kxf5 {[%clk 0:00:04]} 57. Kxg2 {[%clk 0:00:40]}  Ke4 {[%clk 0:00:05]} 58. Kg3 {[%clk 0:00:40]}  Kxd4 {[%clk 0:00:05]} 59. Kg4 {[%clk 0:00:40]}  Ke3 {[%clk 0:00:06]} 60. Kxg5 {[%clk 0:00:40]}  d4 {[%clk 0:00:07]} 61. Kf6 {[%clk 0:00:39]}  d3 {[%clk 0:00:07]} 0-1


[Site "https://www.chess.com"]

[Event "Titled Tuesday Blitz May 4 2021"]
[White "Holt, Conrad"]
[Black "Garcia Blanco, Omar"]
[WhiteFideId "2034387"]
[BlackFideId "2287153"]
[WhiteElo "2586"]
[BlackElo "2273"]
[Result "1/2-1/2"]
[Round "02"]
[TimeControl "180+1"]
[Date "2021.05.04"]
[WhiteClock "0:00:04"]
[BlackClock "0:00:15"]

1. d4 {[%clk 0:02:53]}  Nf6 {[%clk 0:02:58]} 2. c4 {[%clk 0:02:53]}  c5 {[%clk 0:02:53]} 3. d5 {[%clk 0:02:52]}  b5 {[%clk 0:02:49]} 4. Nf3 {[%clk 0:02:50]}  g6 {[%clk 0:02:48]} 5. Nfd2 {[%clk 0:02:50]}  Bg7 {[%clk 0:02:47]} 6. e4 {[%clk 0:02:50]}  d6 {[%clk 0:02:45]} 7. cxb5 {[%clk 0:02:49]}  a6 {[%clk 0:02:45]} 8. Nc3 {[%clk 0:02:49]}  O-O {[%clk 0:02:45]} 9. a4 {[%clk 0:02:44]}  Bb7 {[%clk 0:02:43]} 10. Be2 {[%clk 0:02:43]}  axb5 {[%clk 0:02:41]} 11. Bxb5 {[%clk 0:02:43]}  e6 {[%clk 0:02:37]} 12. Nc4 {[%clk 0:02:31]}  exd5 {[%clk 0:02:35]} 13. exd5 {[%clk 0:02:30]}  Nbd7 {[%clk 0:02:27]} 14. O-O {[%clk 0:02:28]}  Nb6 {[%clk 0:02:25]} 15. Nxb6 {[%clk 0:02:27]}  Qxb6 {[%clk 0:02:26]} 16. Re1 {[%clk 0:02:25]}  Ba6 {[%clk 0:02:23]} 17. Bf4 {[%clk 0:02:20]}  Nh5 {[%clk 0:02:19]} 18. Bg5 {[%clk 0:02:13]}  Bxb5 {[%clk 0:02:09]} 19. Nxb5 {[%clk 0:02:07]}  Rfe8 {[%clk 0:02:03]} 20. Rxe8+ {[%clk 0:02:00]}  Rxe8 {[%clk 0:02:04]} 21. Qd2 {[%clk 0:01:56]}  Nf6 {[%clk 0:02:00]} 22. Re1 {[%clk 0:01:45]}  Qb8 {[%clk 0:01:44]} 23. Bxf6 {[%clk 0:01:35]}  Bxf6 {[%clk 0:01:42]} 24. Rxe8+ {[%clk 0:01:33]}  Qxe8 {[%clk 0:01:43]} 25. g3 {[%clk 0:01:22]}  Qe4 {[%clk 0:01:34]} 26. Nxd6 {[%clk 0:01:18]}  Qxa4 {[%clk 0:01:33]} 27. Qe2 {[%clk 0:01:08]}  Qd7 {[%clk 0:01:13]} 28. Ne4 {[%clk 0:00:34]}  Bd4 {[%clk 0:01:13]} 29. Qd3 {[%clk 0:00:24]}  Qb7 {[%clk 0:00:58]} 30. b3 {[%clk 0:00:23]}  f5 {[%clk 0:00:53]} 31. Nd2 {[%clk 0:00:10]}  Qxd5 {[%clk 0:00:53]} 32. Qe2 {[%clk 0:00:10]}  Qe5 {[%clk 0:00:51]} 33. Qxe5 {[%clk 0:00:05]}  Bxe5 {[%clk 0:00:52]} 34. Kf1 {[%clk 0:00:06]}  Kf7 {[%clk 0:00:52]} 35. Ke2 {[%clk 0:00:06]}  Ke6 {[%clk 0:00:52]} 36. Kd3 {[%clk 0:00:07]}  Kd5 {[%clk 0:00:52]} 37. Nc4 {[%clk 0:00:07]}  Bc7 {[%clk 0:00:52]} 38. Ne3+ {[%clk 0:00:07]}  Ke5 {[%clk 0:00:52]} 39. Kc4 {[%clk 0:00:08]}  Ke4 {[%clk 0:00:45]} 40. Kxc5 {[%clk 0:00:08]}  Kf3 {[%clk 0:00:46]} 41. Nd5 {[%clk 0:00:08]}  Ba5 {[%clk 0:00:44]} 42. b4 {[%clk 0:00:07]}  Bxb4+ {[%clk 0:00:44]} 43. Kxb4 {[%clk 0:00:07]}  Kxf2 {[%clk 0:00:45]} 44. Kc3 {[%clk 0:00:07]}  Kg2 {[%clk 0:00:45]} 45. Kd2 {[%clk 0:00:07]}  Kxh2 {[%clk 0:00:45]} 46. Nf6 {[%clk 0:00:07]}  h5 {[%clk 0:00:38]} 47. Ke1 {[%clk 0:00:07]}  Kxg3 {[%clk 0:00:39]} 48. Kf1 {[%clk 0:00:08]}  h4 {[%clk 0:00:38]} 49. Nh7 {[%clk 0:00:07]}  h3 {[%clk 0:00:35]} 50. Kg1 {[%clk 0:00:07]}  h2+ {[%clk 0:00:34]} 51. Kh1 {[%clk 0:00:08]}  f4 {[%clk 0:00:35]} 52. Ng5 {[%clk 0:00:08]}  f3 {[%clk 0:00:34]} 53. Ne4+ {[%clk 0:00:08]}  Kf4 {[%clk 0:00:35]} 54. Nf2 {[%clk 0:00:07]}  Ke3 {[%clk 0:00:34]} 55. Ng4+ {[%clk 0:00:07]}  Ke2 {[%clk 0:00:34]} 56. Nxh2 {[%clk 0:00:06]}  g5 {[%clk 0:00:33]} 57. Kg1 {[%clk 0:00:05]}  Ke3 {[%clk 0:00:15]} 58. Kf1 {[%clk 0:00:04]}  Kf4 {[%clk 0:00:15]} 59. Kf2 {[%clk 0:00:04]}  g4 {[%clk 0:00:16]} 60. Nf1 {[%clk 0:00:05]}  Ke4 {[%clk 0:00:16]} 61. Kg3 {[%clk 0:00:05]}  Kd3 {[%clk 0:00:14]} 62. Kxg4 {[%clk 0:00:04]}  Ke2 {[%clk 0:00:15]} 63. Ng3+ {[%clk 0:00:04]}  Ke3 {[%clk 0:00:14]} 64. Nf1+ {[%clk 0:00:04]}  Kf2 {[%clk 0:00:15]} 65. Nh2 {[%clk 0:00:04]}  Kg2 {[%clk 0:00:15]} 66. Nxf3 {[%clk 0:00:04]} 1/2-1/2


[Site "https://www.chess.com"]

[Event "Titled Tuesday Blitz May 4 2021"]
[White "Indjic, Aleksandar"]
[Black "Ognean, Mihnea-Ionut"]
[WhiteFideId "911925"]
[BlackFideId "1232347"]
[WhiteElo "2591"]
[BlackElo "2012"]
[Result "1-0"]
[Round "02"]
[TimeControl "180+1"]
[Date "2021.05.04"]
[WhiteClock "0:02:17"]
[BlackClock "0:00:58"]

1. d4 {[%clk 0:03:00]}  Nf6 {[%clk 0:03:00]} 2. c4 {[%clk 0:03:00]}  e6 {[%clk 0:03:00]} 3. Nc3 {[%clk 0:03:00]}  Bb4 {[%clk 0:03:00]} 4. Nf3 {[%clk 0:03:00]}  b6 {[%clk 0:02:58]} 5. Bg5 {[%clk 0:02:59]}  Bb7 {[%clk 0:02:53]} 6. e3 {[%clk 0:02:59]}  h6 {[%clk 0:02:40]} 7. Bh4 {[%clk 0:02:58]}  g5 {[%clk 0:02:37]} 8. Bg3 {[%clk 0:02:58]}  Ne4 {[%clk 0:02:38]} 9. Qc2 {[%clk 0:02:58]}  f5 {[%clk 0:02:35]} 10. Nd2 {[%clk 0:02:58]}  d6 {[%clk 0:02:26]} 11. Ndxe4 {[%clk 0:02:57]}  Bxe4 {[%clk 0:02:02]} 12. Qa4+ {[%clk 0:02:48]}  Nc6 {[%clk 0:02:01]} 13. f3 {[%clk 0:02:48]}  Bxc3+ {[%clk 0:01:35]} 14. bxc3 {[%clk 0:02:46]}  b5 {[%clk 0:01:18]} 15. cxb5 {[%clk 0:02:46]}  f4 {[%clk 0:01:02]} 16. exf4 {[%clk 0:02:17]}  gxf4 {[%clk 0:00:58]} 17. Bf2 {[%clk 0:02:17]} 1-0


[Site "https://www.chess.com"]